[Event "*** Titled Tuesday Blitz"]
[Site "Chess.com"]
[Date "2020.04.14"]
[Round "1"]
[White "JulAnt"]
[Black "KuzubovYuriy"]
[Result "1-0"]
[WhiteElo "2439"]
[BlackElo "2791"]
[TimeControl "180+1"]
[EndTime "10:08:07 PDT"]
[Termination "JulAnt won on time"]

1. e4 {[%clk 0:03:00.9]} 1... c6 {[%clk 0:02:58.8]} 2. d4 {[%clk 0:03:00.4]}
2... d5 {[%clk 0:02:58.7]} 3. Nc3 {[%clk 0:02:58.4]} 3... dxe4 {[%clk
0:02:58.5]} 4. Nxe4 {[%clk 0:02:58]} 4... Nf6 {[%clk 0:02:59.2]} 5. Nxf6+ {[%clk
0:02:57.4]} 5... exf6 {[%clk 0:03:00.1]} 6. c3 {[%clk 0:02:52.6]} 6... Bd6
{[%clk 0:03:00]} 7. Bd3 {[%clk 0:02:52.8]} 7... O-O {[%clk 0:03:00.1]} 8. Qc2
{[%clk 0:02:53]} 8... Re8+ {[%clk 0:03:00.1]} 9. Ne2 {[%clk 0:02:53.1]} 9... h5
{[%clk 0:03:00.1]} 10. O-O {[%clk 0:02:43.9]} 10... h4 {[%clk 0:03:00.1]} 11.
Qd1 {[%clk 0:02:35.6]} 11... Qc7 {[%clk 0:02:39.8]} 12. g3 {[%clk 0:02:25.3]}
12... Bh3 {[%clk 0:02:14.9]} 13. Re1 {[%clk 0:02:18.3]} 13... Bg4 {[%clk
0:01:46.3]} 14. Qc2 {[%clk 0:02:08.4]} 14... Nd7 {[%clk 0:01:38.9]} 15. Be3
{[%clk 0:01:39]} 15... hxg3 {[%clk 0:01:02.4]} 16. hxg3 {[%clk 0:01:37.7]} 16...
Nf8 {[%clk 0:00:19]} 17. Bf5 {[%clk 0:01:33.6]} 17... Bf3 {[%clk 0:00:17.3]} 18.
Bh3 {[%clk 0:01:28.6]} 18... g6 {[%clk 0:00:13.9]} 19. Bg2 {[%clk 0:01:27.7]}
19... Bg4 {[%clk 0:00:14]} 20. Bf4 {[%clk 0:01:11.3]} 20... Ne6 {[%clk
0:00:12.6]} 21. Bxd6 {[%clk 0:01:09.5]} 21... Qxd6 {[%clk 0:00:13.5]} 22. Qd3
{[%clk 0:00:55.9]} 22... Nc5 {[%clk 0:00:10.2]} 23. Qd2 {[%clk 0:00:51.4]} 23...
Ne4 {[%clk 0:00:08.9]} 24. Qf4 {[%clk 0:00:46.9]} 24... Bxe2 {[%clk 0:00:08.9]}
25. Rxe2 {[%clk 0:00:44.8]} 25... Qxf4 {[%clk 0:00:09.1]} 26. gxf4 {[%clk
0:00:45.7]} 26... Nd6 {[%clk 0:00:09]} 27. Rae1 {[%clk 0:00:44.4]} 27... Rxe2
{[%clk 0:00:09.1]} 28. Rxe2 {[%clk 0:00:45.3]} 28... Kf8 {[%clk 0:00:09.5]} 29.
d5 {[%clk 0:00:42.2]} 29... c5 {[%clk 0:00:09.4]} 30. b3 {[%clk 0:00:41.8]}
30... b5 {[%clk 0:00:08.3]} 31. Bf1 {[%clk 0:00:39]} 31... Rc8 {[%clk
0:00:07.6]} 32. Rd2 {[%clk 0:00:35.2]} 32... a5 {[%clk 0:00:06.8]} 33. a3 {[%clk
0:00:32.8]} 33... b4 {[%clk 0:00:05.5]} 34. axb4 {[%clk 0:00:32.2]} 34... cxb4
{[%clk 0:00:06.4]} 35. cxb4 {[%clk 0:00:32.5]} 35... axb4 {[%clk 0:00:07.3]} 36.
Rd4 {[%clk 0:00:32.7]} 36... Rc2 {[%clk 0:00:04.3]} 37. Rxb4 {[%clk 0:00:31.7]}
37... f5 {[%clk 0:00:04.9]} 38. Bd3 {[%clk 0:00:23.3]} 38... Rd2 {[%clk
0:00:04.7]} 39. Bc4 {[%clk 0:00:22.7]} 39... Ne4 {[%clk 0:00:04.5]} 40. Rb8+
{[%clk 0:00:22.8]} 40... Ke7 {[%clk 0:00:04.4]} 41. Rb7+ {[%clk 0:00:21.9]}
41... Kd6 {[%clk 0:00:04.7]} 42. Rxf7 {[%clk 0:00:21.6]} 42... Rxf2 {[%clk
0:00:04.2]} 43. Rg7 {[%clk 0:00:19.2]} 43... Rxf4 {[%clk 0:00:03.3]} 44. Rxg6+
{[%clk 0:00:19.5]} 44... Ke5 {[%clk 0:00:02.9]} 45. Re6+ {[%clk 0:00:19.5]}
45... Kd4 {[%clk 0:00:03.3]} 46. d6 {[%clk 0:00:20]} 46... Rg4+ {[%clk
0:00:03.3]} 47. Kf1 {[%clk 0:00:18.9]} 47... Ng3+ {[%clk 0:00:02.4]} 48. Ke1
{[%clk 0:00:18.8]} 48... Ne4 {[%clk 0:00:02.1]} 49. d7 {[%clk 0:00:18.4]} 49...
Rg1+ {[%clk 0:00:01.8]} 50. Ke2 {[%clk 0:00:18]} 50... Rg2+ {[%clk 0:00:02.2]}
51. Kd1 {[%clk 0:00:16.7]} 51... Rd2+ {[%clk 0:00:01.8]} 52. Kc1 {[%clk
0:00:16.6]} 52... Kc3 {[%clk 0:00:02]} 53. Re8 {[%clk 0:00:13.7]} 53... Rc2+
{[%clk 0:00:02]} 54. Kb1 {[%clk 0:00:13.1]} 54... Nd2+ {[%clk 0:00:01.9]} 55.
Ka1 {[%clk 0:00:13]} 1-0

[Event "*** Titled Tuesday Blitz"]
[Site "Chess.com"]
[Date "2020.04.14"]
[Round "1"]
[White "JakubPulpan"]
[Black "pichonazo"]
[Result "1-0"]
[WhiteElo "2757"]
[BlackElo "2342"]
[TimeControl "180+1"]
[EndTime "10:08:08 PDT"]
[Termination "JakubPulpan won on time"]

1. e4 {[%clk 0:02:58.3]} 1... Nc6 {[%clk 0:02:59.2]} 2. Nf3 {[%clk 0:02:51.5]}
2... d6 {[%clk 0:02:57.6]} 3. d4 {[%clk 0:02:50.6]} 3... Nf6 {[%clk 0:02:57.5]}
4. d5 {[%clk 0:02:51]} 4... Nb8 {[%clk 0:02:56.5]} 5. Nc3 {[%clk 0:02:51.5]}
5... Bg4 {[%clk 0:02:56]} 6. Be2 {[%clk 0:02:51.6]} 6... g6 {[%clk 0:02:55.7]}
7. O-O {[%clk 0:02:30.7]} 7... Bg7 {[%clk 0:02:53.8]} 8. a4 {[%clk 0:02:31.5]}
8... O-O {[%clk 0:02:50.7]} 9. Be3 {[%clk 0:02:31.4]} 9... c6 {[%clk 0:02:49.9]}
10. h3 {[%clk 0:02:31.8]} 10... Bxf3 {[%clk 0:02:49.1]} 11. Bxf3 {[%clk
0:02:32.7]} 11... cxd5 {[%clk 0:02:49.3]} 12. exd5 {[%clk 0:02:33.4]} 12... Nbd7
{[%clk 0:02:49.5]} 13. Bd4 {[%clk 0:02:29.3]} 13... a6 {[%clk 0:02:48.5]} 14.
Re1 {[%clk 0:02:28.6]} 14... Re8 {[%clk 0:02:46.9]} 15. Qd2 {[%clk 0:02:25.6]}
15... Qc7 {[%clk 0:02:42.3]} 16. Ra3 {[%clk 0:02:05.2]} 16... Nc5 {[%clk
0:02:30]} 17. b4 {[%clk 0:01:59.7]} 17... Ncd7 {[%clk 0:02:28.2]} 18. Rb3 {[%clk
0:01:53.4]} 18... Ne5 {[%clk 0:02:27.7]} 19. Bxe5 {[%clk 0:01:50.4]} 19... dxe5
{[%clk 0:02:28.6]} 20. Qe2 {[%clk 0:01:32.3]} 20... Nd7 {[%clk 0:01:51.1]} 21.
Ne4 {[%clk 0:01:24.5]} 21... Rac8 {[%clk 0:01:38.3]} 22. Rc3 {[%clk 0:01:08]}
22... Qb6 {[%clk 0:01:31.3]} 23. Rb3 {[%clk 0:01:06.9]} 23... Qc7 {[%clk
0:01:19.6]} 24. c3 {[%clk 0:01:01]} 24... h6 {[%clk 0:01:16.2]} 25. Rd1 {[%clk
0:00:56.1]} 25... Red8 {[%clk 0:00:57.6]} 26. d6 {[%clk 0:00:52.6]} 26... exd6
{[%clk 0:00:57.6]} 27. Nxd6 {[%clk 0:00:53.5]} 27... Rb8 {[%clk 0:00:57.7]} 28.
Nxb7 {[%clk 0:00:37]} 28... Rxb7 {[%clk 0:00:50.7]} 29. Bxb7 {[%clk 0:00:37.9]}
29... Qxb7 {[%clk 0:00:50.8]} 30. c4 {[%clk 0:00:38.7]} 30... Rc8 {[%clk
0:00:46.2]} 31. Rdb1 {[%clk 0:00:28.9]} 31... e4 {[%clk 0:00:46]} 32. c5 {[%clk
0:00:28.6]} 32... Ne5 {[%clk 0:00:43.3]} 33. b5 {[%clk 0:00:22.8]} 33... axb5
{[%clk 0:00:37.9]} 34. Qxb5 {[%clk 0:00:23.7]} 34... Qe7 {[%clk 0:00:27.8]} 35.
a5 {[%clk 0:00:10.4]} 35... Rxc5 {[%clk 0:00:23]} 36. Qb8+ {[%clk 0:00:10.8]}
36... Kh7 {[%clk 0:00:23]} 37. a6 {[%clk 0:00:11.4]} 37... Rc2 {[%clk
0:00:17.2]} 38. a7 {[%clk 0:00:08.6]} 38... Qf6 {[%clk 0:00:15]} 39. Qb6 {[%clk
0:00:03.7]} 39... Rc6 {[%clk 0:00:09.7]} 40. Qe3 {[%clk 0:00:02.9]} 40... Ra6
{[%clk 0:00:07.6]} 41. Rb8 {[%clk 0:00:02.8]} 41... Nc4 {[%clk 0:00:06]} 42.
Qxe4 {[%clk 0:00:02.4]} 42... Rxa7 {[%clk 0:00:04.5]} 43. Qxc4 {[%clk 0:00:03]}
43... Ra2 {[%clk 0:00:03.9]} 44. Qc5 {[%clk 0:00:02.4]} 44... h5 {[%clk
0:00:01.6]} 45. Qe3 {[%clk 0:00:02.5]} 1-0

[Event "*** Titled Tuesday Blitz"]
[Site "Chess.com"]
[Date "2020.04.14"]
[Round "1"]
[White "BlackGod93"]
[Black "GMHess"]
[Result "0-1"]
[WhiteElo "2425"]
[BlackElo "2810"]
[TimeControl "180+1"]
[EndTime "10:08:10 PDT"]
[Termination "GMHess won by resignation"]

1. Nf3 {[%clk 0:02:57.5]} 1... g6 {[%clk 0:03:00.9]} 2. c4 {[%clk 0:02:53]} 2...
Bg7 {[%clk 0:03:01.4]} 3. d4 {[%clk 0:02:53.3]} 3... a6 {[%clk 0:03:01.7]} 4.
Nc3 {[%clk 0:02:53.9]} 4... e6 {[%clk 0:02:56.3]} 5. e4 {[%clk 0:02:53.8]} 5...
Ne7 {[%clk 0:02:56.9]} 6. Be2 {[%clk 0:02:48.5]} 6... d6 {[%clk 0:02:48.1]} 7.
h4 {[%clk 0:02:47.7]} 7... h6 {[%clk 0:02:47.9]} 8. Be3 {[%clk 0:02:44]} 8...
Nd7 {[%clk 0:02:46.7]} 9. Qd2 {[%clk 0:02:44]} 9... b6 {[%clk 0:02:46.6]} 10.
O-O-O {[%clk 0:02:37.3]} 10... Bb7 {[%clk 0:02:46.8]} 11. h5 {[%clk 0:02:37.4]}
11... g5 {[%clk 0:02:46.5]} 12. Nxg5 {[%clk 0:02:37.4]} 12... hxg5 {[%clk
0:02:45.9]} 13. Bxg5 {[%clk 0:02:38.3]} 13... Bf6 {[%clk 0:02:14.6]} 14. g4
{[%clk 0:02:03.3]} 14... Nc6 {[%clk 0:02:00.4]} 15. Be3 {[%clk 0:02:02.3]} 15...
e5 {[%clk 0:02:00]} 16. dxe5 {[%clk 0:01:55]} 16... dxe5 {[%clk 0:01:46.3]} 17.
g5 {[%clk 0:01:51.8]} 17... Be7 {[%clk 0:01:46]} 18. g6 {[%clk 0:01:41.4]} 18...
Nf6 {[%clk 0:01:16.5]} 19. Qxd8+ {[%clk 0:01:07.8]} 19... Rxd8 {[%clk
0:01:08.9]} 20. g7 {[%clk 0:01:07.2]} 20... Rxd1+ {[%clk 0:00:54.8]} 21. Bxd1
{[%clk 0:01:07.1]} 21... Rh7 {[%clk 0:00:52.1]} 22. h6 {[%clk 0:01:07.4]} 22...
Nd4 {[%clk 0:00:35.3]} 23. Bxd4 {[%clk 0:00:52.2]} 23... exd4 {[%clk 0:00:34.8]}
24. e5 {[%clk 0:00:47.3]} 24... Ng8 {[%clk 0:00:31.8]} 25. Nd5 {[%clk
0:00:23.8]} 25... Bxd5 {[%clk 0:00:21.2]} 26. cxd5 {[%clk 0:00:24.7]} 26... Rxh6
{[%clk 0:00:19.4]} 27. Rxh6 {[%clk 0:00:20]} 27... Bg5+ {[%clk 0:00:19.4]} 28.
Kc2 {[%clk 0:00:18.7]} 28... Bxh6 {[%clk 0:00:20.3]} 29. Kd3 {[%clk 0:00:17.8]}
29... Bxg7 {[%clk 0:00:20.4]} 30. f4 {[%clk 0:00:18.2]} 30... Bh6 {[%clk
0:00:19.5]} 31. Ke4 {[%clk 0:00:16.9]} 31... Ke7 {[%clk 0:00:18.3]} 32. f5
{[%clk 0:00:16]} 32... f6 {[%clk 0:00:17]} 33. e6 {[%clk 0:00:13.6]} 33... Bc1
{[%clk 0:00:16.3]} 34. b4 {[%clk 0:00:12.9]} 34... Be3 {[%clk 0:00:16]} 35. Be2
{[%clk 0:00:12.9]} 35... Kd6 {[%clk 0:00:14.7]} 36. Bxa6 {[%clk 0:00:12.1]}
36... Ne7 {[%clk 0:00:15.2]} 37. Bb7 {[%clk 0:00:12.7]} 37... Bd2 {[%clk
0:00:13.5]} 38. a3 {[%clk 0:00:10.7]} 38... Bc1 {[%clk 0:00:13.4]} 39. a4 {[%clk
0:00:10.9]} 39... Bd2 {[%clk 0:00:14]} 40. Kxd4 {[%clk 0:00:04.6]} 40... Bxb4
{[%clk 0:00:14.2]} 41. Ke4 {[%clk 0:00:04.9]} 41... Ba3 {[%clk 0:00:13.5]} 42.
Ba6 {[%clk 0:00:05.4]} 42... Nxd5 {[%clk 0:00:12.9]} 43. Bb5 {[%clk 0:00:05.1]}
43... Ne7 {[%clk 0:00:12.5]} 44. Bd7 {[%clk 0:00:04.5]} 44... c6 {[%clk
0:00:12.5]} 45. Be8 {[%clk 0:00:04.2]} 45... Kc5 {[%clk 0:00:11.4]} 46. Bd7
{[%clk 0:00:03.3]} 46... b5 {[%clk 0:00:11.9]} 47. axb5 {[%clk 0:00:03.2]} 47...
cxb5 {[%clk 0:00:12.8]} 48. Be8 {[%clk 0:00:03.4]} 48... b4 {[%clk 0:00:13]} 49.
Kd3 {[%clk 0:00:02.9]} 49... Nxf5 {[%clk 0:00:12.5]} 50. Ba4 {[%clk 0:00:03.5]}
50... Ne7 {[%clk 0:00:12.5]} 51. Bb3 {[%clk 0:00:04]} 51... Kd6 {[%clk
0:00:12.7]} 52. Kc4 {[%clk 0:00:03.8]} 52... Kxe6 {[%clk 0:00:13.1]} 53. Kb5+
{[%clk 0:00:04.2]} 53... Ke5 {[%clk 0:00:13.5]} 54. Kc4 {[%clk 0:00:04.6]} 54...
f5 {[%clk 0:00:13.8]} 55. Kd3 {[%clk 0:00:04.7]} 55... f4 {[%clk 0:00:14.3]} 56.
Ke2 {[%clk 0:00:04]} 56... Nf5 {[%clk 0:00:14.7]} 0-1

[Event "*** Titled Tuesday Blitz"]
[Site "Chess.com"]
[Date "2020.04.14"]
[Round "1"]
[White "Keks2017"]
[Black "Sam_ChessMood"]
[Result "0-1"]
[WhiteElo "2485"]
[BlackElo "2913"]
[TimeControl "180+1"]
[EndTime "10:08:12 PDT"]
[Termination "Sam_ChessMood won by resignation"]

1. e4 {[%clk 0:02:58.7]} 1... c5 {[%clk 0:02:58.3]} 2. d3 {[%clk 0:02:58.3]}
2... Nc6 {[%clk 0:02:57.5]} 3. g3 {[%clk 0:02:58.2]} 3... d5 {[%clk 0:02:55.3]}
4. Nd2 {[%clk 0:02:57]} 4... Nf6 {[%clk 0:02:49.4]} 5. Bg2 {[%clk 0:02:56.8]}
5... g6 {[%clk 0:02:49.8]} 6. Ngf3 {[%clk 0:02:56.3]} 6... Bg7 {[%clk
0:02:50.1]} 7. O-O {[%clk 0:02:56.2]} 7... O-O {[%clk 0:02:50.3]} 8. c3 {[%clk
0:02:56.2]} 8... e5 {[%clk 0:02:50.1]} 9. exd5 {[%clk 0:02:54.3]} 9... Nxd5
{[%clk 0:02:49.8]} 10. Qa4 {[%clk 0:02:53.9]} 10... Re8 {[%clk 0:02:48.2]} 11.
Re1 {[%clk 0:02:46.9]} 11... Nb6 {[%clk 0:02:08.7]} 12. Qb5 {[%clk 0:02:46]}
12... Nd7 {[%clk 0:01:37.6]} 13. Ne4 {[%clk 0:02:45.1]} 13... Qb6 {[%clk
0:01:33.2]} 14. Qxb6 {[%clk 0:02:39]} 14... axb6 {[%clk 0:01:31.8]} 15. Nd6
{[%clk 0:02:36.1]} 15... Re6 {[%clk 0:01:31]} 16. Nxc8 {[%clk 0:02:34.7]} 16...
Rxc8 {[%clk 0:01:31.2]} 17. Nd2 {[%clk 0:02:22.8]} 17... b5 {[%clk 0:01:21.7]}
18. Nb3 {[%clk 0:02:09.9]} 18... Rd6 {[%clk 0:01:17.6]} 19. Bf1 {[%clk
0:02:00.9]} 19... b6 {[%clk 0:01:06.6]} 20. a4 {[%clk 0:01:57.7]} 20... b4
{[%clk 0:01:06.3]} 21. Nd2 {[%clk 0:01:50.5]} 21... Na5 {[%clk 0:01:04.4]} 22.
Nc4 {[%clk 0:01:09.3]} 22... Nxc4 {[%clk 0:01:01.3]} 23. dxc4 {[%clk 0:01:09.1]}
23... f5 {[%clk 0:01:00.7]} 24. f3 {[%clk 0:01:08.4]} 24... Ra8 {[%clk
0:00:48.3]} 25. Be3 {[%clk 0:01:05.5]} 25... Kf7 {[%clk 0:00:48.4]} 26. Be2
{[%clk 0:00:59.2]} 26... bxc3 {[%clk 0:00:46.8]} 27. bxc3 {[%clk 0:00:58.2]}
27... Ke6 {[%clk 0:00:47.2]} 28. Reb1 {[%clk 0:00:54.7]} 28... Ra6 {[%clk
0:00:43.9]} 29. Ra2 {[%clk 0:00:50.2]} 29... Bf6 {[%clk 0:00:43.1]} 30. Kf2
{[%clk 0:00:48.6]} 30... h5 {[%clk 0:00:42.8]} 31. Rd1 {[%clk 0:00:43.1]} 31...
Rxd1 {[%clk 0:00:42.1]} 32. Bxd1 {[%clk 0:00:43.1]} 32... Nb8 {[%clk 0:00:38.1]}
33. Be2 {[%clk 0:00:34.2]} 33... Nc6 {[%clk 0:00:38.2]} 34. Ke1 {[%clk
0:00:33.9]} 34... Nd8 {[%clk 0:00:35.1]} 35. Kd2 {[%clk 0:00:33.3]} 35... Nb7
{[%clk 0:00:35.4]} 36. Kc2 {[%clk 0:00:33]} 36... Nd6 {[%clk 0:00:35.7]} 37. Kb3
{[%clk 0:00:31.6]} 37... g5 {[%clk 0:00:36.2]} 38. Rd2 {[%clk 0:00:29.6]} 38...
Ra8 {[%clk 0:00:32]} 39. h3 {[%clk 0:00:28.7]} 39... Nb7 {[%clk 0:00:30.2]} 40.
Rd1 {[%clk 0:00:26.7]} 40... Rd8 {[%clk 0:00:27.5]} 41. Rxd8 {[%clk 0:00:25.4]}
41... Bxd8 {[%clk 0:00:27.5]} 42. g4 {[%clk 0:00:23]} 42... hxg4 {[%clk
0:00:20.1]} 43. hxg4 {[%clk 0:00:23.1]} 43... fxg4 {[%clk 0:00:20.4]} 44. fxg4
{[%clk 0:00:22.7]} 44... e4 {[%clk 0:00:20.8]} 45. Bf2 {[%clk 0:00:20.4]} 45...
Bf6 {[%clk 0:00:20.5]} 46. Bg3 {[%clk 0:00:20]} 46... Be5 {[%clk 0:00:20.9]} 47.
Bf2 {[%clk 0:00:20.1]} 47... Bf4 {[%clk 0:00:21.2]} 48. Be1 {[%clk 0:00:19.5]}
48... Ke5 {[%clk 0:00:21]} 49. Bf2 {[%clk 0:00:19.4]} 49... Na5+ {[%clk
0:00:21.3]} 50. Kc2 {[%clk 0:00:18.8]} 50... e3 {[%clk 0:00:21.7]} 51. Be1
{[%clk 0:00:18.5]} 51... Ke4 {[%clk 0:00:22.2]} 52. Kd1 {[%clk 0:00:16.7]} 52...
Be5 {[%clk 0:00:22.2]} 53. Kc2 {[%clk 0:00:16.3]} 53... Bh2 {[%clk 0:00:21.9]}
54. Kd1 {[%clk 0:00:16.1]} 54... Bc7 {[%clk 0:00:19.5]} 55. Kc2 {[%clk 0:00:16]}
55... Nc6 {[%clk 0:00:19.5]} 56. Kd1 {[%clk 0:00:15.6]} 56... Bf4 {[%clk
0:00:19.3]} 57. Kc2 {[%clk 0:00:15.1]} 57... Ne5 {[%clk 0:00:19.5]} 58. Kb3
{[%clk 0:00:14.7]} 58... Nd3 {[%clk 0:00:19.2]} 0-1

[Event "*** Titled Tuesday Blitz"]
[Site "Chess.com"]
[Date "2020.04.14"]
[Round "1"]
[White "Dhaydon19"]
[Black "AsaHoffmann"]
[Result "1/2-1/2"]
[WhiteElo "2629"]
[BlackElo "2305"]
[TimeControl "180+1"]
[EndTime "10:08:12 PDT"]
[Termination "Game drawn - insufficient material"]

1. Nf3 {[%clk 0:02:59.8]} 1... d6 {[%clk 0:02:58.4]} 2. g3 {[%clk 0:03:00.2]}
2... e5 {[%clk 0:02:56.1]} 3. Bg2 {[%clk 0:02:59.6]} 3... Nf6 {[%clk 0:02:55.5]}
4. c4 {[%clk 0:02:59.7]} 4... c6 {[%clk 0:02:55]} 5. Nc3 {[%clk 0:02:58.8]} 5...
Be7 {[%clk 0:02:54.1]} 6. O-O {[%clk 0:02:48.6]} 6... O-O {[%clk 0:02:52.7]} 7.
b3 {[%clk 0:02:46.5]} 7... Bf5 {[%clk 0:02:48.1]} 8. Bb2 {[%clk 0:02:45.9]} 8...
h6 {[%clk 0:02:47.3]} 9. c5 {[%clk 0:02:45.6]} 9... e4 {[%clk 0:02:40.9]} 10.
Nd4 {[%clk 0:02:44.2]} 10... Bg6 {[%clk 0:02:37]} 11. cxd6 {[%clk 0:02:42.9]}
11... Bxd6 {[%clk 0:02:36.4]} 12. Nc2 {[%clk 0:02:38.9]} 12... Re8 {[%clk
0:02:32.6]} 13. Ne3 {[%clk 0:02:38.4]} 13... Na6 {[%clk 0:02:27.7]} 14. Rc1
{[%clk 0:02:37.4]} 14... Qe7 {[%clk 0:02:23.1]} 15. Nc4 {[%clk 0:02:35.6]} 15...
Bc5 {[%clk 0:02:18.3]} 16. Na4 {[%clk 0:02:30.8]} 16... Rad8 {[%clk 0:02:11.8]}
17. Nxc5 {[%clk 0:02:28.7]} 17... Nxc5 {[%clk 0:02:10.9]} 18. Ba3 {[%clk
0:02:28]} 18... b6 {[%clk 0:02:07.4]} 19. Na5 {[%clk 0:02:05.5]} 19... Rc8
{[%clk 0:01:51.7]} 20. Nxc6 {[%clk 0:01:55.4]} 20... Rxc6 {[%clk 0:01:45.6]} 21.
b4 {[%clk 0:01:55.5]} 21... Nfd7 {[%clk 0:01:41.8]} 22. bxc5 {[%clk 0:01:54.7]}
22... Nxc5 {[%clk 0:01:41.4]} 23. Rc3 {[%clk 0:01:50.5]} 23... Rd8 {[%clk
0:01:35.3]} 24. Qc1 {[%clk 0:01:49.1]} 24... Rcd6 {[%clk 0:01:31.1]} 25. Rxc5
{[%clk 0:01:44.4]} 25... bxc5 {[%clk 0:01:30.4]} 26. Bxc5 {[%clk 0:01:43.8]}
26... Qd7 {[%clk 0:01:27.2]} 27. Bxd6 {[%clk 0:01:42.7]} 27... Qxd6 {[%clk
0:01:27]} 28. Rd1 {[%clk 0:01:41.3]} 28... a5 {[%clk 0:01:24.7]} 29. Qc4 {[%clk
0:01:36.7]} 29... Qb4 {[%clk 0:01:21]} 30. Qxb4 {[%clk 0:01:15.4]} 30... axb4
{[%clk 0:01:20.5]} 31. d3 {[%clk 0:01:06.7]} 31... exd3 {[%clk 0:01:16.6]} 32.
exd3 {[%clk 0:01:06.5]} 32... Rxd3 {[%clk 0:01:14.1]} 33. Rxd3 {[%clk
0:01:05.9]} 33... Bxd3 {[%clk 0:01:13.3]} 34. Bd5 {[%clk 0:01:06.8]} 34... Kf8
{[%clk 0:01:12.6]} 35. f4 {[%clk 0:01:06.8]} 35... Ke7 {[%clk 0:01:11.3]} 36.
Kf2 {[%clk 0:01:06.4]} 36... f6 {[%clk 0:01:10.3]} 37. Ke3 {[%clk 0:01:06.6]}
37... Bb1 {[%clk 0:01:08.3]} 38. Kd4 {[%clk 0:01:05.3]} 38... Kd6 {[%clk
0:01:07.7]} 39. Bb3 {[%clk 0:01:04.4]} 39... g5 {[%clk 0:00:56]} 40. fxg5 {[%clk
0:01:00.9]} 40... hxg5 {[%clk 0:00:54.6]} 41. Kc4 {[%clk 0:01:01.8]} 41... f5
{[%clk 0:00:54.5]} 42. Kxb4 {[%clk 0:01:01.8]} 42... f4 {[%clk 0:00:54.4]} 43.
gxf4 {[%clk 0:01:02]} 43... gxf4 {[%clk 0:00:54.3]} 44. a4 {[%clk 0:01:01.7]}
44... f3 {[%clk 0:00:52.4]} 45. Bc4 {[%clk 0:01:01.3]} 45... Bf5 {[%clk
0:00:47.4]} 46. Bf1 {[%clk 0:01:00.7]} 46... Ke5 {[%clk 0:00:43.4]} 47. a5
{[%clk 0:00:52.3]} 47... Be4 {[%clk 0:00:42.9]} 48. a6 {[%clk 0:00:51.9]} 48...
Kf4 {[%clk 0:00:41.9]} 49. a7 {[%clk 0:00:51.7]} 49... Ke3 {[%clk 0:00:38.7]}
50. h4 {[%clk 0:00:47.5]} 50... Kf4 {[%clk 0:00:37.1]} 51. Kc3 {[%clk
0:00:39.2]} 51... Kg4 {[%clk 0:00:30.8]} 52. Kd4 {[%clk 0:00:39.4]} 52... Ba8
{[%clk 0:00:29.1]} 53. Ke3 {[%clk 0:00:34.3]} 53... Kxh4 {[%clk 0:00:28.4]} 54.
Kf4 {[%clk 0:00:34.3]} 54... Kh5 {[%clk 0:00:24.3]} 55. Kg3 {[%clk 0:00:28.2]}
55... Kg5 {[%clk 0:00:23.4]} 56. Bd3 {[%clk 0:00:28.1]} 56... Kf6 {[%clk
0:00:22.5]} 57. Kf2 {[%clk 0:00:23.3]} 57... Ke5 {[%clk 0:00:21.9]} 58. Bc2
{[%clk 0:00:23.4]} 58... Kd6 {[%clk 0:00:21.4]} 59. Bd1 {[%clk 0:00:23.9]} 59...
Kc7 {[%clk 0:00:20.8]} 60. Bxf3 {[%clk 0:00:24.8]} 60... Bxf3 {[%clk 0:00:19.9]}
61. Kxf3 {[%clk 0:00:25.3]} 61... Kb7 {[%clk 0:00:19.5]} 62. a8=Q+ {[%clk
0:00:23.2]} 62... Kxa8 {[%clk 0:00:18.7]} 1/2-1/2